[Event "SVK-ch Open 2018"]
[Site "Banska Stiavnica"]
[Date "2018.07.08"]
[Round "2"]
[White "Molnar, Erno"]
[Black "Milcova, Zuzana"]
[Result "1/2-1/2"]
[ECO "B01"]
[WhiteElo "2231"]
[BlackElo "2002"]
[Annotator "NA"]
[PlyCount "99"]
[EventDate "2018.07.07"]
[EventType "swiss"]
[EventCountry "SVK"]
[SourceTitle "playchess.com"]
[Source "ChessBase"]
[SourceQuality "1"]
[TimeControl "40/5400+30:1800+30"]

1. e4 {[%emt 0:01:17]} d5 {[%emt 0:00:00]} 2. exd5 {[%emt 0:00:11]} Qxd5 {[%emt 0:00:00]} 3. Nc3 {[%emt 0:00:12]} Qd6 {[%emt 0:00:00]} 4. d4 {[%emt 0:00:17]} Nf6 {[%emt 0:00:00]} 5. Nf3 {[%emt 0:00:21]} c6 {[%emt 0:00:11]} 6. Ne5 {[%emt 0:00:56]} Nbd7 {[%emt 0:01:09]} 7. Nc4 {[%emt 0:00:42]} Qe6+ {[%emt 0:04:10]} 8. Be2 {[%emt 0:07:28]} Nd5 {[%emt 0:09:21]} 9. O-O {[%emt 0:07:46]} g6 {[%emt 0:03:27]} 10. Nxd5 {[%emt 0:13:36]} cxd5 {[%emt 0:09:09]} 11. Ne3 {[%emt 0:00:42]} Bg7 {[%emt 0:04:34]} 12. c3 {[%emt 0:00:56]} O-O $14 {[%emt 0:07:04]} 13. a4 {[%emt 0:09:42]} a5 {[%emt 0:11:15]} 14. b3 {[%emt 0:11:06]} Nf6 {[%emt 0:06:44]} 15. Ba3 {[%emt 0:03:06]} Bd7 {[%emt 0:03:35]} 16. Re1 {[%emt 0:03:35]} Ne4 {[%emt 0:16:50]} 17. Qc2 {[%emt 0:12:34]} Rac8 {[%emt 0:01:24]} 18. Nxd5 {[%emt 0:03:18]} Qxd5 {[%emt 0:06:08]} 19. Bc4 {[%emt 0:00:16]} Rxc4 {[%emt 0:07:50]} 20. bxc4 {[%emt 0:00:22]} Qxc4 {[%emt 0:00:04]} 21. Qxe4 {[%emt 0:01:30]} Qxc3 {[%emt 0:01:07]} 22. Bc5 {[%emt 0:06:44]} Bc6 {[%emt 0:03:06]} 23. Qxe7 {[%emt 0:06:26]} b6 {[%emt 0:00:04]} 24. Bxb6 {[%emt 0:05:52]} Re8 {[%emt 0:00:53]} 25. Qxe8+ {[%emt 0:00:21]} Bxe8 {[%emt 0:00:01]} 26. Rxe8+ {[%emt 0:00:07]} Bf8 {[%emt 0:00:03]} 27. Rae1 {[%emt 0:00:32]} Kg7 {[%emt 0:00:08]} 28. d5 {[%emt 0:01:32]} Bd6 {[%emt 0:01:50]} 29. R8e4 {[%emt 0:01:33]} Qb3 {[%emt 0:00:43]} 30. Bxa5 {[%emt 0:00:45]} Qxd5 {[%emt 0:00:12]} 31. Bc3+ {[%emt 0:00:28]} f6 {[%emt 0:00:19]} 32. g3 {[%emt 0:01:10]} Qd3 {[%emt 0:00:21]} 33. Bb2 {[%emt 0:00:28]} Bc5 {[%emt 0:00:42]} 34. Rf4 {[%emt 0:00:35]} h5 {[%emt 0:01:14]} 35. Bxf6+ {[%emt 0:00:18]} Kh7 {[%emt 0:00:31]} 36. Kg2 {[%emt 0:00:40]} Qd5+ {[%emt 0:00:18]} 37. Rfe4 {[%emt 0:00:28]} g5 {[%emt 0:01:11]} 38. R1e2 {[%emt 0:00:31]} g4 {[%emt 0:00:14]} 39. h3 {[%emt 0:00:33]} gxh3+ {[%emt 0:00:12]} 40. Kh2 {[%emt 0:00:25]} Kg6 {[%emt 0:00:31]} 41. Bh4 {[%emt 0:07:48]} Qd1 {[%emt 0:10:12]} 42. Re1 {[%emt 0:03:39]} Qf3 {[%emt 0:02:56]} 43. Kxh3 {[%emt 0:00:40]} Qf5+ {[%emt 0:13:48]} 44. g4 {[%emt 0:02:01]} hxg4+ {[%emt 0:01:31]} 45. Rxg4+ {[%emt 0:00:07]} Kh5 {[%emt 0:00:12]} 46. Reg1 {[%emt 0:01:51]} Bd6 {[%emt 0:02:52]} 47. a5 {[%emt 0:06:34]} Qf3+ {[%emt 0:00:42]} 48. R4g3 {[%emt 0:00:18]} Bxg3 {[%emt 0:00:44]} 49. Bxg3 {[%emt 0:00:07]} Qf5+ {[%emt 0:00:29]} 50. Kg2 {[%emt 0:00:18]} 1/2-1/2

[Event "SVK-ch Open 2018"]
[Site "Banska Stiavnica"]
[Date "2018.07.08"]
[Round "2"]
[White "Sikora, Jan"]
[Black "Antal, Jozsef"]
[Result "1-0"]
[ECO "C24"]
[WhiteElo "2209"]
[BlackElo "1995"]
[Annotator "NA"]
[PlyCount "61"]
[EventDate "2018.07.07"]
[EventType "swiss"]
[EventCountry "SVK"]
[SourceTitle "playchess.com"]
[Source "ChessBase"]
[SourceQuality "1"]
[TimeControl "40/5400+30:1800+30"]

1. e4 {[%emt 0:00:00]} e5 {[%emt 0:00:00]} 2. Bc4 {[%emt 0:00:00]} Nf6 {[%emt 0:00:00]} 3. d3 {[%emt 0:00:03]} c6 {[%emt 0:00:03]} 4. Nf3 {[%emt 0:00:08]} Be7 {[%emt 0:00:10]} 5. O-O {[%emt 0:01:56]} d6 {[%emt 0:01:15]} 6. Re1 {[%emt 0:05:44]} O-O {[%emt 0:00:43]} 7. Bb3 {[%emt 0:02:53]} Bg4 {[%emt 0:00:22]} 8. Nbd2 {[%emt 0:00:22]} Nbd7 {[%emt 0:00:24]} 9. c3 {[%emt 0:00:16]} Nc5 {[%emt 0:00:14]} 10. Bc2 {[%emt 0:00:14]} Ne6 {[%emt 0:00:18] C24: Bishop's Opening: 2...Nf6} 11. h3 {[%emt 0:01:06]} Bh5 {[%emt 0:00:10]} 12. Nf1 {[%emt 0:00:37]} Nd7 {[%emt 0:00:15]} 13. Ng3 {[%emt 0:04:29]} (13. g4 Bg6 14. Ng3 Ng5 15. Bxg5 Bxg5 16. d4 Bf4 17. Ne2 Qf6 18. Kg2 exd4 19. Nfxd4 {1-0 (33) Carlsen,M (2840)-Wei,Y (2706) Wijk aan Zee 2017 CBM 177 [Meier,G]}) 13... Bxf3 {[%emt 0:00:24]} 14. Qxf3 {[%emt 0:00:53]} g6 {[%emt 0:00:14]} 15. Bh6 {[%emt 0:04:44]} Re8 {[%emt 0:00:22] [#]} 16. b4 $146 {[%emt 0:09:18]} ({Predecessor:} 16. Rad1 Bg5 17. Bxg5 Qxg5 18. d4 {½-½ (39) Zhao,J (2611)-Liu,Y (2505) Hangzhou 2018}) 16... Bg5 17. Bxg5 Qxg5 {[%emt 0:09:04]} 18. Bb3 {[%emt 0:05:19]} a5 {[%emt 0:13:48]} 19. bxa5 {[%emt 0:12:42]} Rxa5 {[%emt 0:01:35]} 20. d4 {[%emt 0:01:35]} Qf4 $11 {[%emt 0:11:54]} 21. Qd3 {[%emt 0:07:31]} exd4 {[%emt 0:11:09]} 22. cxd4 {[%emt 0:01:50]} Rea8 {[%emt 0:02:29]} 23. Re3 {[%emt 0:04:52]} Qf6 {[%emt 0:00:42]} 24. Rd1 {[%emt 0:02:26]} d5 {[%emt 0:06:20]} 25. exd5 {[%emt 0:02:10]} cxd5 {[%emt 0:00:41]} 26. Ne2 {[%emt 0:00:53]} Nf4 {[%emt 0:13:54]} 27. Nxf4 {[%emt 0:00:08]} Qxf4 {[%emt 0:00:07]} 28. Re7 {[%emt 0:01:19]} Qd6 {[%emt 0:00:16]} 29. Rde1 {[%emt 0:02:16]} b6 {[%emt 0:00:34]} 30. Qf3 {[%emt 0:04:19]} Nf6 {[%emt 0:03:14]} 31. R1e6 {[%emt 0:04:53]} 1-0

[Event "SVK-ch Open 2018"]
[Site "Banska Stiavnica"]
[Date "2018.07.08"]
[Round "2"]
[White "Mrvova, Alena"]
[Black "Gajdosik, Andrej"]
[Result "1-0"]
[ECO "C65"]
[WhiteElo "2202"]
[BlackElo "1992"]
[Annotator "NA"]
[PlyCount "49"]
[EventDate "2018.07.07"]
[EventType "swiss"]
[EventCountry "SVK"]
[SourceTitle "playchess.com"]
[Source "ChessBase"]
[SourceQuality "1"]
[TimeControl "40/5400+30:1800+30"]

1. e4 {[%emt 0:00:00]} e5 {[%emt 0:00:00]} 2. Nf3 {[%emt 0:00:10]} Nc6 {[%emt 0:00:10]} 3. Bb5 {[%emt 0:00:28]} Nf6 {[%emt 0:00:35]} 4. d3 {[%emt 0:00:55]} Bc5 {[%emt 0:01:53]} 5. O-O {[%emt 0:02:16]} d6 {[%emt 0:02:45]} 6. Be3 {[%emt 0:04:13]} Bb6 {[%emt 0:02:20]} 7. c3 {[%emt 0:03:34]} O-O {[%emt 0:01:38]} 8. Nbd2 {[%emt 0:00:48]} Ne7 {[%emt 0:02:11]} 9. d4 {[%emt 0:05:39]} c6 {[%emt 0:02:08]} 10. Bd3 {[%emt 0:03:09]} Ng6 {[%emt 0:02:03]} 11. Re1 {[%emt 0:04:44]} h6 {[%emt 0:06:33]} 12. Nf1 {[%emt 0:06:10]} Be6 {[%emt 0:04:27]} 13. Ng3 {[%emt 0:02:59]} Ng4 {[%emt 0:07:07]} 14. Nf5 {[%emt 0:06:16]} Nxe3 {[%emt 0:03:35]} 15. fxe3 {[%emt 0:01:59]} Qd7 {[%emt 0:04:34]} 16. Qc2 {[%emt 0:02:16]} Rad8 {[%emt 0:01:35]} 17. Rad1 $11 {[%emt 0:03:27]} Qc7 {[%emt 0:08:39]} 18. c4 {[%emt 0:03:23]} Qb8 {[%emt 0:12:24]} 19. Qf2 {[%emt 0:05:14]} Ba5 {[%emt 0:07:42]} 20. Rf1 {[%emt 0:02:45]} exd4 {[%emt 0:00:43]} 21. N3xd4 {[%emt 0:02:11]} Ne5 {[%emt 0:00:45]} 22. Qg3 {[%emt 0:01:16]} Ng6 {[%emt 0:01:50]} 23. Nxe6 {[%emt 0:06:02]} fxe6 {[%emt 0:00:02]} 24. Nxh6+ {[%emt 0:00:13]} Kh7 {[%emt 0:01:20]} 25. e5 {[%emt 0:00:26]} 1-0

[Event "SVK-ch Open 2018"]
[Site "Banska Stiavnica"]
[Date "2018.07.08"]
[Round "2"]
[White "Jamrich, Gyorgy"]
[Black "Dylag, Emilia"]
[Result "0-1"]
[ECO "B87"]
[WhiteElo "2200"]
[BlackElo "1935"]
[Annotator "NA"]
[PlyCount "101"]
[EventDate "2018.07.07"]
[EventType "swiss"]
[EventCountry "SVK"]
[SourceTitle "playchess.com"]
[Source "ChessBase"]
[SourceQuality "1"]
[TimeControl "40/5400+30:1800+30"]

1. e4 {[%emt 0:00:00]} c5 {[%emt 0:00:00]} 2. Nf3 {[%emt 0:00:00]} d6 {[%emt 0:00:00]} 3. d4 {[%emt 0:00:00]} cxd4 {[%emt 0:00:00]} 4. Nxd4 {[%emt 0:00:05]} Nf6 {[%emt 0:00:05]} 5. Nc3 {[%emt 0:00:07] LiveBook: 98595 Games} a6 {[%emt 0:00:12]} 6. Bc4 {[%emt 0:00:17]} e6 {[%emt 0:00:27]} 7. Bb3 {[%emt 0:00:17]} b5 {[%emt 0:01:06]} 8. O-O {[%emt 0:02:09]} Be7 {[%emt 0:01:00]} 9. Be3 {[%emt 0:12:07]} O-O {[%emt 0:02:40]} 10. f3 {[%emt 0:02:51]} Bb7 $146 {[%emt 0:03:17] B87: Sicilian Scheveningen/Najdorf: 6 Bc4, with early ...b5} (10... Bd7 11. Qd2 Nc6 12. Nxc6 Bxc6 13. Ne2 Qc7 14. Nd4 Bb7 15. Bxe6 fxe6 16. Nxe6 Qc6 17. Nxf8 Rxf8 18. a4 bxa4 {½-½ (69) Zhak,B (2597)-Freeman,M (2513) ICCF email 2015}) 11. a4 {[%emt 0:00:39]} b4 {[%emt 0:00:33]} 12. Na2 {[%emt 0:00:07]} d5 {[%emt 0:06:17]} 13. e5 {[%emt 0:10:06]} Nfd7 {[%emt 0:01:43]} 14. f4 {[%emt 0:00:07]} Nc6 {[%emt 0:01:27]} 15. c3 {[%emt 0:01:46]} bxc3 {[%emt 0:02:25]} 16. Nxc3 {[%emt 0:00:17]} Qb6 {[%emt 0:04:37]} 17. Bxd5 {[%emt 0:13:34]} exd5 {[%emt 0:12:42]} 18. Nxd5 {[%emt 0:00:27]} Qd8 {[%emt 0:00:41]} 19. Nf5 $15 {[%emt 0:00:25]} Kh8 {[%emt 0:23:11]} 20. Rc1 {[%emt 0:11:52]} Rc8 {[%emt 0:09:04]} 21. Rxc6 {[%emt 0:20:59]} Rxc6 {[%emt 0:00:44]} 22. Nfxe7 {[%emt 0:00:07]} Re6 {[%emt 0:00:47]} 23. Qb3 {[%emt 0:01:02]} Qb8 {[%emt 0:06:15]} 24. Nf5 {[%emt 0:08:41]} Bc6 {[%emt 0:07:05]} 25. Qa2 {[%emt 0:08:49]} Rfe8 {[%emt 0:04:54]} 26. Bd4 {[%emt 0:01:05]} Qb7 {[%emt 0:00:41]} 27. Nde3 {[%emt 0:00:16]} Qb4 {[%emt 0:00:52]} 28. Rd1 {[%emt 0:03:38]} Bxa4 {[%emt 0:06:59]} 29. Bc3 {[%emt 0:00:09]} Qb5 {[%emt 0:00:41]} 30. Nd6 {[%emt 0:01:13]} Qb6 {[%emt 0:02:04]} 31. Bd4 {[%emt 0:01:13]} Qb4 {[%emt 0:01:39]} 32. b3 {[%emt 0:00:57]} Bxb3 {[%emt 0:00:45]} 33. Qb2 {[%emt 0:00:05]} a5 {[%emt 0:00:28]} 34. Nxe8 {[%emt 0:00:48]} Bxd1 {[%emt 0:00:11]} 35. Qxb4 {[%emt 0:00:20]} axb4 {[%emt 0:00:06]} 36. Nc7 {[%emt 0:00:13]} Rc6 {[%emt 0:00:19]} 37. Ncd5 {[%emt 0:00:27]} Rc1 {[%emt 0:01:16]} 38. Kf2 {[%emt 0:00:11]} b3 {[%emt 0:00:27]} 39. f5 {[%emt 0:00:16]} Nc5 {[%emt 0:00:55]} 40. g3 {[%emt 0:01:42]} Nd3+ {[%emt 0:00:29]} 41. Kg2 {[%emt 0:30:13]} b2 {[%emt 0:30:23]} 42. e6 {[%emt 0:00:00]} b1=Q {[%emt 0:00:00]} 43. exf7 {[%emt 0:00:00]} Nf4+ {[%emt 0:00:00]} 44. gxf4 {[%emt 0:00:00]} Qe4+ {[%emt 0:00:00]} 45. Kg3 {[%emt 0:00:00]} Qf3+ {[%emt 0:00:00]} 46. Kh4 {[%emt 0:00:00]} Qh5+ {[%emt 0:00:00]} 47. Kg3 {[%emt 0:00:00]} Qxf7 {[%emt 0:00:00]} 48. f6 {[%emt 0:00:00]} g6 {[%emt 0:00:30]} 49. Nc3 {[%emt 0:00:00]} Rxc3 {[%emt 0:02:11]} 50. Bxc3 {[%emt 0:00:00]} Bb3 51. Ng4 {[%emt 0:00:00]} 0-1

[Event "SVK-ch Open 2018"]
[Site "Banska Stiavnica"]
[Date "2018.07.08"]
[Round "2"]
[White "Sikorova, Olga"]
[Black "Bochnicka, Vladimir"]
[Result "1-0"]
[ECO "A20"]
[WhiteElo "2193"]
[BlackElo "2092"]
[Annotator "NA"]
[PlyCount "61"]
[EventDate "2018.07.07"]
[EventType "swiss"]
[EventCountry "SVK"]
[SourceTitle "playchess.com"]
[Source "ChessBase"]
[SourceQuality "1"]
[TimeControl "40/5400+30:1800+30"]

1. c4 {[%emt 0:00:00]} e5 {[%emt 0:00:00]} 2. g3 {[%emt 0:00:00]} Nf6 {[%emt 0:00:00]} 3. Bg2 {[%emt 0:00:01]} c6 {[%emt 0:00:00]} 4. d4 {[%emt 0:00:27]} exd4 {[%emt 0:02:10]} 5. Qxd4 {[%emt 0:00:21]} d5 {[%emt 0:04:54]} 6. cxd5 {[%emt 0:00:50]} cxd5 {[%emt 0:00:08]} 7. Nf3 {[%emt 0:02:55]} Nc6 {[%emt 0:00:18]} 8. Qd1 {[%emt 0:00:27]} Bc5 {[%emt 0:02:45]} 9. O-O {[%emt 0:02:48]} h6 {[%emt 0:04:02]} 10. Nc3 {[%emt 0:05:48]} O-O {[%emt 0:01:33]} 11. b3 {[%emt 0:04:12]} a6 {[%emt 0:03:20]} 12. Bb2 {[%emt 0:06:20]} Be6 {[%emt 0:01:29]} 13. e3 {[%emt 0:04:50]} Rc8 {[%emt 0:04:01]} 14. Ne2 {[%emt 0:03:22]} Qe7 {[%emt 0:05:43]} 15. Nfd4 {[%emt 0:06:25]} Rfd8 {[%emt 0:06:23]} 16. Rc1 {[%emt 0:05:04]} Ba7 {[%emt 0:08:27]} 17. Nxc6 {[%emt 0:02:23]} bxc6 {[%emt 0:00:14]} 18. Qd3 {[%emt 0:01:00]} Nd7 {[%emt 0:17:43]} 19. Qxa6 {[%emt 0:02:39]} Nc5 {[%emt 0:00:08]} 20. Qa3 {[%emt 0:07:50]} Ra8 {[%emt 0:02:02]} 21. Bd4 {[%emt 0:04:18]} Qg5 {[%emt 0:06:47]} 22. Bxc5 {[%emt 0:01:41]} Bxc5 {[%emt 0:00:24]} 23. Qxc5 {[%emt 0:00:31]} Rxa2 {[%emt 0:00:06]} 24. Nd4 {[%emt 0:01:33]} Bg4 {[%emt 0:01:07]} 25. Nxc6 {[%emt 0:03:52]} Re8 {[%emt 0:02:00]} 26. Qxd5 {[%emt 0:02:20]} Qf6 {[%emt 0:00:08]} 27. Qd4 {[%emt 0:02:02]} Qf5 {[%emt 0:01:57]} 28. Ne7+ {[%emt 0:01:48]} Rxe7 {[%emt 0:00:18]} 29. Qd8+ {[%emt 0:00:03]} Kh7 {[%emt 0:00:09]} 30. Qxe7 {[%emt 0:00:13]} Be2 {[%emt 0:00:43]} 31. Be4 {[%emt 0:00:12]} 1-0

[Event "SVK-ch Open 2018"]
[Site "Banska Stiavnica"]
[Date "2018.07.08"]
[Round "2"]
[White "Lintner, Igor"]
[Black "Istok, Vojtech"]
[Result "1-0"]
[ECO "B01"]
[WhiteElo "2173"]
[BlackElo "1971"]
[Annotator "NA"]
[PlyCount "163"]
[EventDate "2018.07.07"]
[EventType "swiss"]
[EventCountry "SVK"]
[SourceTitle "playchess.com"]
[Source "ChessBase"]
[SourceQuality "1"]
[TimeControl "40/5400+30:1800+30"]

1. e4 d5 2. Nc3 dxe4 3. Nxe4 Bf5 4. Qf3 Qd5 5. Bd3 Nc6 6. Nd6+ Qxd6 7. Bxf5 Nf6 8. c3 e6 9. Bc2 O-O-O 10. Ne2 Ne5 11. Qe3 {[%emt 0:47:23]} Kb8 {[%emt 0:56:43]} 12. d4 {[%emt 0:03:41]} Neg4 {[%emt 0:08:19]} 13. Qg3 Qxg3 14. Nxg3 Nd5 15. Ne4 Be7 16. h3 Ngf6 17. O-O h6 18. a4 a5 19. Nd2 Nb6 20. Nb3 Rd5 21. Re1 Rhd8 22. Nd2 c5 23. Bb3 R5d7 24. Nf3 c4 25. Bc2 Bd6 26. Bd2 Nfd5 27. g3 Rc7 {[%emt 0:27:58]} 28. Re4 {[%emt 0:41:05]} Nd7 {[%emt 0:01:51]} 29. Rae1 {[%emt 0:01:15]} N7f6 30. R4e2 Nd7 31. Bc1 Rg8 32. h4 Rd8 33. Kg2 Ka7 34. Nd2 N7f6 35. f4 g6 {[%emt 0:00:00]} 36. Nf3 {[%emt 0:04:30]} Ng4 {[%emt 0:08:03]} 37. Ne5 {[%emt 0:00:49]} h5 {[%emt 0:01:00]} 38. Kh3 {[%emt 0:02:25]} Ngf6 39. Bd2 Rg8 40. Rf1 Ka6 41. Rf3 Ka7 42. b3 Nb6 43. Re1 Nfd5 44. Nxc4 Nxc4 45. bxc4 Rxc4 46. Bb3 Rgc8 47. Bxc4 Rxc4 48. Ra1 Nb6 49. Rff1 Nxa4 50. Rfb1 Ka6 51. Rb3 b6 52. Rab1 Rc8 {[%emt 0:22:37]} 53. Kg2 {[%emt 0:32:47]} Be7 {[%emt 0:04:36]} 54. Kf2 {[%emt 0:01:41]} Bf6 {[%emt 0:02:31]} 55. Ke2 {[%emt 0:03:07]} Rc7 {[%emt 0:06:01]} 56. Ke3 Rd7 57. Ra3 b5 58. c4 Bxd4+ 59. Ke2 Nb6 60. Rxa5+ Kb7 61. Raxb5 Kc6 {[%emt 0:07:12]} 62. c5 {[%emt 0:10:08]} Nc4 {[%emt 0:00:34]} 63. Rb8 {[%emt 0:01:10]} Nxd2 {[%emt 0:02:47]} 64. Rc8+ {[%emt 0:00:04]} Rc7 65. Rxc7+ Kxc7 66. Kxd2 Bxc5 67. Ke2 Bd4 68. Kf3 f5 69. Ke2 Kd6 70. Rb8 Ke7 71. Rb3 Kf6 72. Kd3 Bf2 73. Kc4 e5 74. Rf3 Bg1 75. fxe5+ Kxe5 76. Kd3 Bh2 77. Ke2 f4 78. Rxf4 Bxg3 79. Ra4 Kf5 80. Kf3 Be1 81. Rf4+ Ke5 82. Re4+ 1-0

[Event "SVK-ch Open 2018"]
[Site "Banska Stiavnica"]
[Date "2018.07.08"]
[Round "2"]
[White "Nogrady, Vilmos"]
[Black "Bidulsky, Matej"]
[Result "1-0"]
[ECO "C52"]
[WhiteElo "2154"]
[BlackElo "1471"]
[Annotator "NA"]
[PlyCount "111"]
[EventDate "2018.07.07"]
[EventType "swiss"]
[EventCountry "SVK"]
[SourceTitle "playchess.com"]
[Source "ChessBase"]
[SourceQuality "1"]
[TimeControl "40/5400+30:1800+30"]

1. e4 {[%emt 0:00:00]} e5 {[%emt 0:00:00]} 2. Nf3 {[%emt 0:00:00]} Nc6 {[%emt 0:00:00]} 3. Bc4 {[%emt 0:00:00]} Bc5 {[%emt 0:00:00]} 4. b4 {[%emt 0:00:10]} Bxb4 {[%emt 0:00:37]} 5. c3 {[%emt 0:00:07]} Ba5 {[%emt 0:00:04]} 6. d4 {[%emt 0:00:18]} exd4 {[%emt 0:00:08]} 7. O-O {[%emt 0:00:15]} d6 {[%emt 0:01:29]} 8. Qb3 {[%emt 0:03:28]} Qe7 {[%emt 0:01:42]} 9. cxd4 {[%emt 0:01:26]} Nf6 {[%emt 0:01:34]} 10. e5 {[%emt 0:04:01]} dxe5 {[%emt 0:00:08]} 11. Ba3 {[%emt 0:01:17]} Bb4 {[%emt 0:06:27]} 12. dxe5 {[%emt 0:07:47]} Ng4 {[%emt 0:03:01]} 13. Bxb4 {[%emt 0:25:08]} Qxb4 {[%emt 0:00:25]} 14. Bxf7+ {[%emt 0:00:47]} Ke7 {[%emt 0:00:34]} 15. Nc3 {[%emt 0:04:08]} Qxb3 {[%emt 0:01:15]} 16. Bxb3 {[%emt 0:00:10]} Be6 {[%emt 0:00:10]} 17. Bxe6 {[%emt 0:08:24]} Kxe6 {[%emt 0:00:06]} 18. Ng5+ {[%emt 0:00:37]} Kf5 {[%emt 0:01:16]} 19. f4 {[%emt 0:01:34]} h6 {[%emt 0:01:52]} 20. Nge4 {[%emt 0:02:54]} Rad8 {[%emt 0:01:29]} 21. h3 {[%emt 0:03:40]} Ne3 {[%emt 0:00:12]} 22. Rf3 {[%emt 0:05:21]} Nd5 {[%emt 0:02:07]} 23. g4+ {[%emt 0:04:41]} Ke6 {[%emt 0:01:14]} 24. Nc5+ {[%emt 0:01:55]} Ke7 {[%emt 0:01:19]} 25. Ne2 {[%emt 0:04:32]} b6 {[%emt 0:01:18]} 26. Ne4 {[%emt 0:00:20]} Rhf8 {[%emt 0:00:31]} 27. Raf1 {[%emt 0:03:33]} Ndb4 {[%emt 0:01:32]} 28. N4g3 {[%emt 0:02:33]} g6 {[%emt 0:03:10]} 29. Rc1 {[%emt 0:03:12]} Kd7 {[%emt 0:04:41]} 30. e6+ {[%emt 0:03:47]} Kd6 {[%emt 0:01:35]} 31. a3 {[%emt 0:01:56]} Na6 {[%emt 0:02:23]} 32. f5 {[%emt 0:02:18]} Nc5 {[%emt 0:01:19]} 33. Re3 {[%emt 0:01:14]} Ne7 {[%emt 0:02:47]} 34. Nd4 {[%emt 0:01:42]} Nd5 {[%emt 0:01:18]} 35. Rf3 {[%emt 0:01:05]} Rde8 {[%emt 0:02:25]} 36. Re1 {[%emt 0:00:20]} a6 {[%emt 0:02:20]} 37. Kg2 {[%emt 0:00:57]} g5 {[%emt 0:01:18]} 38. Rd1 {[%emt 0:01:15]} Nf4+ {[%emt 0:00:28]} 39. Kh2 {[%emt 0:00:20]} Nd5 {[%emt 0:00:25]} 40. Kg2 {[%emt 0:01:51]} Nf4+ {[%emt 0:00:14]} 41. Kh2 {[%emt 0:02:25]} Nd5 {[%emt 0:00:43]} 42. Rd2 {[%emt 0:12:44]} c6 {[%emt 0:02:10]} 43. Rf1 {[%emt 0:01:15]} Kc7 {[%emt 0:02:00]} 44. Nf3 {[%emt 0:05:51]} Ne3 45. Rc1 {[%emt 0:02:11]} Nxe6 {[%emt 0:02:05]} 46. fxe6 {[%emt 0:00:16]} Rxf3 {[%emt 0:00:13]} 47. Rd7+ {[%emt 0:01:07]} Kb8 {[%emt 0:01:13]} 48. Rxc6 {[%emt 0:00:54]} Rf2+ {[%emt 0:01:31]} 49. Kh1 {[%emt 0:00:39]} Rff8 {[%emt 0:03:41]} 50. Rxb6+ Kc8 51. Rc6+ {[%emt 0:01:40]} Kb8 {[%emt 0:00:35]} 52. Ne4 {[%emt 0:01:28]} Rf1+ {[%emt 0:00:34]} 53. Kh2 {[%emt 0:00:10]} Rd1 {[%emt 0:00:45]} 54. Nd6 {[%emt 0:02:54]} Rd2+ {[%emt 0:02:42]} 55. Kg1 {[%emt 0:00:48]} Rxd6 {[%emt 0:02:01]} 56. Rcxd6 1-0

[Event "SVK-ch Open 2018"]
[Site "Banska Stiavnica"]
[Date "2018.07.08"]
[Round "2"]
[White "Bango, Lukas"]
[Black "Kuna, Martin"]
[Result "1-0"]
[ECO "D01"]
[WhiteElo "2148"]
[BlackElo "1947"]
[Annotator "NA"]
[PlyCount "37"]
[EventDate "2018.07.07"]
[EventType "swiss"]
[EventCountry "SVK"]
[SourceTitle "playchess.com"]
[Source "ChessBase"]
[SourceQuality "1"]
[TimeControl "40/5400+30:1800+30"]

1. d4 {[%emt 0:00:00]} d5 {[%emt 0:00:00]} 2. Nc3 {[%emt 0:00:00]} Nf6 {[%emt 0:00:30]} 3. Bg5 {[%emt 0:00:00]} Bf5 {[%emt 0:01:09]} 4. e3 {[%emt 0:01:07]} e6 {[%emt 0:03:13]} 5. Nf3 {[%emt 0:00:36]} h6 {[%emt 0:01:57]} 6. Bh4 {[%emt 0:01:49]} Be7 {[%emt 0:01:32]} 7. Bd3 {[%emt 0:00:20]} Ne4 {[%emt 0:01:30]} 8. Bxe7 {[%emt 0:00:35]} Qxe7 {[%emt 0:00:07]} 9. Bxe4 {[%emt 0:02:11]} dxe4 {[%emt 0:00:55]} 10. Nd2 {[%emt 0:00:25]} Qg5 {[%emt 0:02:06]} 11. Qe2 {[%emt 0:01:49]} Nc6 {[%emt 0:29:39]} 12. O-O-O {[%emt 0:03:07]} O-O-O {[%emt 0:02:44]} 13. Ndxe4 {[%emt 0:05:43]} Bxe4 {[%emt 0:05:27]} 14. Nxe4 {[%emt 0:00:03]} Qa5 {[%emt 0:07:32]} 15. Qc4 {[%emt 0:03:44]} Nb4 {[%emt 0:07:54]} 16. Kb1 {[%emt 0:03:40]} f5 {[%emt 0:10:06]} 17. Qxe6+ {[%emt 0:01:54]} Kb8 {[%emt 0:00:05]} 18. Nc3 {[%emt 0:04:16]} Rd5 {[%emt 0:11:47]} 19. a3 {[%emt 0:00:50]} 1-0

[Event "SVK-ch Open 2018"]
[Site "Banska Stiavnica"]
[Date "2018.07.08"]
[Round "2"]
[White "Zatko, Gregor"]
[Black "Gzib, David"]
[Result "1/2-1/2"]
[ECO "E71"]
[WhiteElo "2144"]
[BlackElo "1939"]
[Annotator "NA"]
[PlyCount "47"]
[EventDate "2018.07.07"]
[EventType "swiss"]
[EventCountry "SVK"]
[SourceTitle "playchess.com"]
[Source "ChessBase"]
[SourceQuality "1"]
[TimeControl "40/5400+30:1800+30"]

1. d4 {[%emt 0:00:00]} d6 {[%emt 0:00:00]} 2. e4 {[%emt 0:00:17]} g6 {[%emt 0:00:19]} 3. c4 {[%emt 0:00:19]} Nf6 {[%emt 0:00:27]} 4. Nc3 {[%emt 0:00:05]} Bg7 {[%emt 0:00:11]} 5. h3 {[%emt 0:01:03]} O-O {[%emt 0:01:09]} 6. Nf3 {[%emt 0:00:05]} Nbd7 {[%emt 0:01:55]} 7. Be2 {[%emt 0:02:03]} e5 {[%emt 0:01:28]} 8. d5 {[%emt 0:02:27]} Nc5 {[%emt 0:01:05]} 9. Qc2 {[%emt 0:01:17]} a5 {[%emt 0:04:31]} 10. g4 {[%emt 0:01:28]} c6 {[%emt 0:07:12]} 11. Bg5 {[%emt 0:02:11]} Qc7 {[%emt 0:03:16]} 12. O-O-O {[%emt 0:01:10]} Bd7 {[%emt 0:10:07]} 13. Kb1 {[%emt 0:03:11]} Rab8 {[%emt 0:05:22]} 14. Be3 {[%emt 0:05:26]} cxd5 {[%emt 0:05:43]} 15. Nxd5 {[%emt 0:15:28]} Nxd5 {[%emt 0:03:26]} 16. cxd5 {[%emt 0:00:32]} b6 {[%emt 0:04:59]} 17. Rc1 {[%emt 0:11:41]} Qb7 {[%emt 0:14:03]} 18. Nd2 {[%emt 0:03:41]} Rfc8 {[%emt 0:08:23]} 19. Nc4 {[%emt 0:05:52]} Bf8 {[%emt 0:04:20]} 20. f3 {[%emt 0:00:17]} a4 {[%emt 0:03:10]} 21. Qd2 {[%emt 0:03:04]} b5 {[%emt 0:03:34]} 22. Bxc5 {[%emt 0:05:20]} Rxc5 {[%emt 0:06:17]} 23. Na5 {[%emt 0:03:11]} Qb6 {[%emt 0:03:07]} 24. b4 {[%emt 0:02:20]} 1/2-1/2